[Event "Titled Tuesday Blitz April 4 Early 2023"]
[White "Simonovic, Miroslav"]
[Black "KorolDimitriy75"]
[WhiteFideId "919152"]
[WhiteElo "2042"]
[BlackElo "2443"]
[Result "0-1"]
[Round "06"]
[TimeControl "180+2"]
[Date "2023.04.04"]
[WhiteClock "0:00:22"]
[BlackClock "0:00:14"]

1. d4 {[%clk 0:03:00]}  Nf6 {[%clk 0:02:59]} 2. Bg5 {[%clk 0:03:01]}  Ne4 {[%clk 0:02:57]} 3. Bf4 {[%clk 0:03:01]}  c5 {[%clk 0:02:58]} 4. d5 {[%clk 0:03:01]}  Qb6 {[%clk 0:02:57]} 5. f3 {[%clk 0:02:56]}  Qxb2 {[%clk 0:02:35]} 6. Nd2 {[%clk 0:02:56]}  Nc3 {[%clk 0:02:27]} 7. Qc1 {[%clk 0:02:54]}  Qxc1+ {[%clk 0:02:26]} 8. Rxc1 {[%clk 0:02:55]}  Nxd5 {[%clk 0:02:26]} 9. Bxb8 {[%clk 0:02:48]}  Rxb8 {[%clk 0:02:27]} 10. c4 {[%clk 0:02:49]}  Nb4 {[%clk 0:02:19]} 11. a3 {[%clk 0:02:48]}  Nc6 {[%clk 0:02:18]} 12. e3 {[%clk 0:02:45]}  g6 {[%clk 0:02:18]} 13. Nb3 {[%clk 0:02:44]}  d6 {[%clk 0:02:16]} 14. Bd3 {[%clk 0:02:43]}  Bg7 {[%clk 0:02:16]} 15. Ne2 {[%clk 0:02:43]}  Bb2 {[%clk 0:02:09]} 16. Rc2 {[%clk 0:02:42]}  Bxa3 {[%clk 0:02:09]} 17. Ra2 {[%clk 0:02:42]}  Bb4+ {[%clk 0:01:58]} 18. Kf2 {[%clk 0:02:42]}  e6 {[%clk 0:01:47]} 19. Be4 {[%clk 0:02:41]}  a6 {[%clk 0:01:34]} 20. Bxc6+ {[%clk 0:02:40]}  bxc6 {[%clk 0:01:33]} 21. Na5 {[%clk 0:02:29]}  Kd7 {[%clk 0:01:22]} 22. Rd1 {[%clk 0:02:28]}  Kc7 {[%clk 0:01:20]} 23. Nb3 {[%clk 0:02:16]}  Bb7 {[%clk 0:01:04]} 24. Nd2 {[%clk 0:02:15]}  a5 {[%clk 0:01:01]} 25. Ne4 {[%clk 0:02:15]}  Rhd8 {[%clk 0:01:00]} 26. h4 {[%clk 0:02:12]}  Ba6 {[%clk 0:00:57]} 27. Rc1 {[%clk 0:02:05]}  Kb6 {[%clk 0:00:46]} 28. Ng5 {[%clk 0:02:03]}  Rb7 {[%clk 0:00:44]} 29. Nxh7 {[%clk 0:02:02]}  d5 {[%clk 0:00:42]} 30. cxd5 {[%clk 0:01:59]}  cxd5 {[%clk 0:00:43]} 31. Ng5 {[%clk 0:01:51]}  Bb5 {[%clk 0:00:42]} 32. g4 {[%clk 0:01:43]}  a4 {[%clk 0:00:37]} 33. h5 {[%clk 0:01:42]}  a3 {[%clk 0:00:37]} 34. hxg6 {[%clk 0:01:39]}  fxg6 {[%clk 0:00:36]} 35. Nxe6 {[%clk 0:01:40]}  Re8 {[%clk 0:00:33]} 36. N6f4 {[%clk 0:01:39]}  Bc4 {[%clk 0:00:26]} 37. Raa1 {[%clk 0:01:22]}  Rbe7 {[%clk 0:00:17]} 38. Rxc4 {[%clk 0:01:14]}  dxc4 {[%clk 0:00:16]} 39. Nd5+ {[%clk 0:01:14]}  Kb5 {[%clk 0:00:16]} 40. Nxe7 {[%clk 0:01:14]}  Rxe7 {[%clk 0:00:17]} 41. Rb1 {[%clk 0:01:10]}  Ka4 {[%clk 0:00:17]} 42. Nc1 {[%clk 0:01:01]}  Bc3 {[%clk 0:00:16]} 43. Ke2 {[%clk 0:00:50]}  Bb2 {[%clk 0:00:16]} 44. f4 {[%clk 0:00:33]}  c3 {[%clk 0:00:16]} 45. Kd3 {[%clk 0:00:33]}  Rd7+ {[%clk 0:00:16]} 46. Kc4 {[%clk 0:00:33]}  c2 {[%clk 0:00:15]} 47. Rxb2 {[%clk 0:00:21]}  axb2 {[%clk 0:00:15]} 48. Nd3 {[%clk 0:00:22]}  c1=Q+ {[%clk 0:00:14]} 0-1


[Site "https://www.chess.com"]

[Event "Titled Tuesday Blitz April 4 Early 2023"]
[White "Yanayt, Eugene"]
[Black "EdmundPlayer"]
[WhiteFideId "2020165"]
[WhiteElo "2083"]
[BlackElo "2239"]
[Result "1-0"]
[Round "06"]
[TimeControl "180+2"]
[Date "2023.04.04"]
[WhiteClock "0:00:14"]
[BlackClock "0:00:08"]

1. e4 {[%clk 0:02:59]}  e5 {[%clk 0:02:57]} 2. Nf3 {[%clk 0:02:56]}  Nc6 {[%clk 0:02:57]} 3. Bc4 {[%clk 0:02:50]}  Bc5 {[%clk 0:02:55]} 4. c3 {[%clk 0:02:38]}  Nf6 {[%clk 0:02:55]} 5. b4 {[%clk 0:02:36]}  Bb6 {[%clk 0:02:50]} 6. a4 {[%clk 0:02:34]}  a6 {[%clk 0:02:36]} 7. a5 {[%clk 0:02:33]}  Ba7 {[%clk 0:02:36]} 8. O-O {[%clk 0:02:32]}  O-O {[%clk 0:02:33]} 9. d3 {[%clk 0:02:29]}  d6 {[%clk 0:02:27]} 10. Nbd2 {[%clk 0:02:23]}  h6 {[%clk 0:02:24]} 11. Ra2 {[%clk 0:02:22]}  Ne7 {[%clk 0:02:18]} 12. Re1 {[%clk 0:02:20]}  Ng6 {[%clk 0:02:16]} 13. Nf1 {[%clk 0:02:19]}  Be6 {[%clk 0:02:15]} 14. Qb3 {[%clk 0:02:13]}  Qd7 {[%clk 0:01:48]} 15. d4 {[%clk 0:02:00]}  exd4 {[%clk 0:01:36]} 16. Nxd4 {[%clk 0:01:48]}  Bxc4 {[%clk 0:01:35]} 17. Qxc4 {[%clk 0:01:47]}  d5 {[%clk 0:01:33]} 18. exd5 {[%clk 0:01:44]}  Qxd5 {[%clk 0:01:33]} 19. Ne3 {[%clk 0:01:39]}  Rfe8 {[%clk 0:01:23]} 20. Qe2 {[%clk 0:00:46]}  Qe4 {[%clk 0:01:06]} 21. Qf3 {[%clk 0:00:22]}  Bxd4 {[%clk 0:00:58]} 22. cxd4 {[%clk 0:00:20]}  Qxf3 {[%clk 0:00:50]} 23. gxf3 {[%clk 0:00:20]}  Nf4 {[%clk 0:00:49]} 24. Rc2 {[%clk 0:00:20]}  c6 {[%clk 0:00:44]} 25. Rd1 {[%clk 0:00:19]}  Rad8 {[%clk 0:00:41]} 26. Nc4 {[%clk 0:00:19]}  N6d5 {[%clk 0:00:29]} 27. Bd2 {[%clk 0:00:17]}  Ne2+ {[%clk 0:00:28]} 28. Kf1 {[%clk 0:00:17]}  Nxd4 {[%clk 0:00:28]} 29. Rb2 {[%clk 0:00:17]}  Nxf3 {[%clk 0:00:28]} 30. Bc1 {[%clk 0:00:17]}  Nc3 {[%clk 0:00:12]} 31. Rxd8 {[%clk 0:00:16]}  Rxd8 {[%clk 0:00:13]} 32. Kg2 {[%clk 0:00:16]}  Ne1+ {[%clk 0:00:11]} 33. Kh3 {[%clk 0:00:17]}  Nd3 {[%clk 0:00:10]} 34. Rc2 {[%clk 0:00:16]}  Nxc1 {[%clk 0:00:09]} 35. Rxc3 {[%clk 0:00:15]}  Ne2 {[%clk 0:00:07]} 36. Re3 {[%clk 0:00:16]}  Nf4+ {[%clk 0:00:06]} 37. Kg4 {[%clk 0:00:16]}  Nd5 {[%clk 0:00:07]} 38. Re4 {[%clk 0:00:14]}  Kf8 {[%clk 0:00:06]} 39. Ne5 {[%clk 0:00:13]}  g6 {[%clk 0:00:05]} 40. Kg3 {[%clk 0:00:12]}  Kg7 {[%clk 0:00:04]} 41. Nf3 {[%clk 0:00:11]}  f5 {[%clk 0:00:03]} 42. Rc4 {[%clk 0:00:11]}  Kf6 {[%clk 0:00:03]} 43. Ne1 {[%clk 0:00:11]}  Re8 {[%clk 0:00:03]} 44. Ng2 {[%clk 0:00:11]}  Re4 {[%clk 0:00:03]} 45. Rc1 {[%clk 0:00:10]}  Rxb4 {[%clk 0:00:03]} 46. Re1 {[%clk 0:00:11]}  Rb3+ {[%clk 0:00:03]} 47. f3 {[%clk 0:00:11]}  Kf7 {[%clk 0:00:03]} 48. Nh4 {[%clk 0:00:11]}  Re3 {[%clk 0:00:03]} 49. Rd1 {[%clk 0:00:11]}  f4+ {[%clk 0:00:03]} 50. Kf2 {[%clk 0:00:10]}  Rc3 {[%clk 0:00:03]} 51. Rb1 {[%clk 0:00:10]}  Rc2+ {[%clk 0:00:03]} 52. Kg1 {[%clk 0:00:10]}  Ne3 {[%clk 0:00:02]} 53. Rxb7+ {[%clk 0:00:09]}  Kf6 {[%clk 0:00:03]} 54. Rd7 {[%clk 0:00:08]}  Rc1+ {[%clk 0:00:03]} 55. Kf2 {[%clk 0:00:07]}  Rc2+ {[%clk 0:00:03]} 56. Ke1 {[%clk 0:00:07]}  Rxh2 {[%clk 0:00:03]} 57. Rd6+ {[%clk 0:00:06]}  Kg5 {[%clk 0:00:04]} 58. Nxg6 {[%clk 0:00:07]}  Rh1+ {[%clk 0:00:03]} 59. Ke2 {[%clk 0:00:07]}  Rh2+ {[%clk 0:00:04]} 60. Ke1 {[%clk 0:00:07]}  Rh1+ {[%clk 0:00:04]} 61. Ke2 {[%clk 0:00:08]}  Rh2+ {[%clk 0:00:04]} 62. Kd3 {[%clk 0:00:08]}  Kf5 {[%clk 0:00:04]} 63. Nf8 {[%clk 0:00:08]}  Ke5 {[%clk 0:00:05]} 64. Rxc6 {[%clk 0:00:09]}  Rh1 {[%clk 0:00:04]} 65. Re6+ {[%clk 0:00:09]}  Kd5 {[%clk 0:00:04]} 66. Rxa6 {[%clk 0:00:09]}  Rd1+ {[%clk 0:00:04]} 67. Ke2 {[%clk 0:00:10]}  Ra1 {[%clk 0:00:04]} 68. Rxh6 {[%clk 0:00:10]}  Ra2+ {[%clk 0:00:03]} 69. Kd3 {[%clk 0:00:10]}  Ra3+ {[%clk 0:00:03]} 70. Ke2 {[%clk 0:00:10]}  Kd4 {[%clk 0:00:03]} 71. Rd6+ {[%clk 0:00:09]}  Nd5 {[%clk 0:00:04]} 72. Ne6+ {[%clk 0:00:09]}  Ke5 {[%clk 0:00:04]} 73. Rc6 {[%clk 0:00:09]}  Ra1 {[%clk 0:00:03]} 74. Kd2 {[%clk 0:00:09]}  Ra2+ {[%clk 0:00:04]} 75. Kc1 {[%clk 0:00:09]}  Rxa5 {[%clk 0:00:04]} 76. Nd8 {[%clk 0:00:09]}  Ra3 {[%clk 0:00:04]} 77. Re6+ {[%clk 0:00:09]}  Kd4 {[%clk 0:00:04]} 78. Nc6+ {[%clk 0:00:09]}  Kc3 {[%clk 0:00:04]} 79. Kb1 {[%clk 0:00:09]}  Ra6 {[%clk 0:00:03]} 80. Rd6 {[%clk 0:00:08]}  Rxc6 {[%clk 0:00:04]} 81. Rxc6+ {[%clk 0:00:08]}  Kd4 {[%clk 0:00:04]} 82. Re6 {[%clk 0:00:08]}  Nc3+ {[%clk 0:00:03]} 83. Kc2 {[%clk 0:00:08]}  Nd5 {[%clk 0:00:03]} 84. Re4+ {[%clk 0:00:08]}  Kc5 {[%clk 0:00:03]} 85. Kd3 {[%clk 0:00:09]}  Nb4+ {[%clk 0:00:03]} 86. Rxb4 {[%clk 0:00:09]}  Kxb4 {[%clk 0:00:03]} 87. Ke4 {[%clk 0:00:10]}  Kc5 {[%clk 0:00:04]} 88. Kxf4 {[%clk 0:00:10]}  Kd6 {[%clk 0:00:05]} 89. Kg5 {[%clk 0:00:11]}  Ke7 {[%clk 0:00:06]} 90. Kg6 {[%clk 0:00:11]}  Kf8 {[%clk 0:00:05]} 91. Kf6 {[%clk 0:00:12]}  Kg8 {[%clk 0:00:05]} 92. f4 {[%clk 0:00:12]}  Kf8 {[%clk 0:00:06]} 93. f5 {[%clk 0:00:13]}  Kg8 {[%clk 0:00:06]} 94. Ke7 {[%clk 0:00:13]}  Kg7 {[%clk 0:00:07]} 95. f6+ {[%clk 0:00:13]}  Kh6 {[%clk 0:00:08]} 96. f7 {[%clk 0:00:14]} 1-0


[Site "https://www.chess.com"]

[Event "Titled Tuesday Blitz April 4 Early 2023"]
[White "Ansh M Shah"]
[Black "Blokhin, Sofia"]
[WhiteFideId "25033379"]
[BlackFideId "4508190"]
[WhiteElo "2084"]
[BlackElo "1994"]
[Result "1-0"]
[Round "06"]
[TimeControl "180+2"]
[Date "2023.04.04"]
[WhiteClock "0:00:16"]
[BlackClock "0:00:04"]

1. d4 {[%clk 0:03:00]}  g6 {[%clk 0:02:59]} 2. c4 {[%clk 0:03:01]}  Bg7 {[%clk 0:02:59]} 3. Nc3 {[%clk 0:03:01]}  f5 {[%clk 0:02:59]} 4. h4 {[%clk 0:03:01]}  Nf6 {[%clk 0:02:59]} 5. Bg5 {[%clk 0:02:58]}  O-O {[%clk 0:02:58]} 6. Bxf6 {[%clk 0:02:55]}  Bxf6 {[%clk 0:02:57]} 7. h5 {[%clk 0:02:56]}  g5 {[%clk 0:02:56]} 8. h6 {[%clk 0:02:56]}  d6 {[%clk 0:02:54]} 9. e4 {[%clk 0:02:56]}  Nc6 {[%clk 0:02:48]} 10. d5 {[%clk 0:02:56]}  Ne5 {[%clk 0:02:45]} 11. Bd3 {[%clk 0:02:52]}  f4 {[%clk 0:02:41]} 12. Nf3 {[%clk 0:02:50]}  Bg4 {[%clk 0:02:36]} 13. Be2 {[%clk 0:02:49]}  Bxf3 {[%clk 0:02:34]} 14. gxf3 {[%clk 0:02:32]}  Kh8 {[%clk 0:02:33]} 15. Qb3 {[%clk 0:02:27]}  Qd7 {[%clk 0:02:26]} 16. O-O-O {[%clk 0:02:26]}  a6 {[%clk 0:02:21]} 17. Kb1 {[%clk 0:02:19]}  Rab8 {[%clk 0:02:20]} 18. Qa4 {[%clk 0:02:16]}  Qxa4 {[%clk 0:02:09]} 19. Nxa4 {[%clk 0:02:17]}  b5 {[%clk 0:02:08]} 20. cxb5 {[%clk 0:02:17]}  axb5 {[%clk 0:02:09]} 21. Nc3 {[%clk 0:02:17]}  b4 {[%clk 0:02:08]} 22. Nb5 {[%clk 0:02:13]}  Nxf3 {[%clk 0:02:04]} 23. Nxc7 {[%clk 0:02:13]}  Nd4 {[%clk 0:02:00]} 24. Bg4 {[%clk 0:01:58]}  b3 {[%clk 0:01:56]} 25. a3 {[%clk 0:01:55]}  Rb7 {[%clk 0:01:41]} 26. Ne6 {[%clk 0:01:45]}  Nxe6 {[%clk 0:01:41]} 27. Bxe6 {[%clk 0:01:46]}  Rc7 {[%clk 0:01:37]} 28. Rc1 {[%clk 0:01:46]}  Rc5 {[%clk 0:01:31]} 29. Rxc5 {[%clk 0:01:45]}  dxc5 {[%clk 0:01:31]} 30. Rh3 {[%clk 0:01:44]}  Rb8 {[%clk 0:01:27]} 31. a4 {[%clk 0:01:24]}  c4 {[%clk 0:01:24]} 32. d6 {[%clk 0:01:24]}  c3 {[%clk 0:01:16]} 33. bxc3 {[%clk 0:01:17]}  exd6 {[%clk 0:01:14]} 34. Kb2 {[%clk 0:01:13]}  Rb4 {[%clk 0:01:03]} 35. Rd3 {[%clk 0:01:00]}  Rxa4 {[%clk 0:00:37]} 36. Rxd6 {[%clk 0:00:58]}  Rxe4 {[%clk 0:00:17]} 37. Bf5 {[%clk 0:00:52]}  Re2+ {[%clk 0:00:09]} 38. Kxb3 {[%clk 0:00:51]}  Be7 {[%clk 0:00:08]} 39. Rc6 {[%clk 0:00:43]}  Kg8 {[%clk 0:00:08]} 40. Be6+ {[%clk 0:00:41]}  Rxe6 {[%clk 0:00:03]} 41. Rxe6 {[%clk 0:00:42]}  Kf7 {[%clk 0:00:04]} 42. Rc6 {[%clk 0:00:38]}  g4 {[%clk 0:00:04]} 43. Kc4 {[%clk 0:00:34]}  g3 {[%clk 0:00:04]} 44. fxg3 {[%clk 0:00:34]}  fxg3 {[%clk 0:00:05]} 45. Rb6 {[%clk 0:00:14]}  g2 {[%clk 0:00:04]} 46. Rb1 {[%clk 0:00:14]}  Kg6 {[%clk 0:00:03]} 47. Rg1 {[%clk 0:00:14]}  Kxh6 {[%clk 0:00:03]} 48. Rxg2 {[%clk 0:00:15]}  Kh5 {[%clk 0:00:03]} 49. Kd5 {[%clk 0:00:15]}  h6 {[%clk 0:00:03]} 50. c4 {[%clk 0:00:16]}  Bg5 {[%clk 0:00:04]} 51. c5 {[%clk 0:00:16]}  Kg6 {[%clk 0:00:05]} 52. c6 {[%clk 0:00:16]}  Kf5 {[%clk 0:00:04]} 53. c7 {[%clk 0:00:16]} 1-0


[Site "https://www.chess.com"]

[Event "Titled Tuesday Blitz April 4 Early 2023"]
[White "Mirzanurov, Bulat"]
[Black "Thiel, Thomas"]
[WhiteFideId "4184521"]
[BlackFideId "4615964"]
[WhiteElo "2019"]
[BlackElo "2221"]
[Result "1/2-1/2"]
[Round "06"]
[TimeControl "180+2"]
[Date "2023.04.04"]
[WhiteClock "0:00:10"]
[BlackClock "0:01:16"]

1. e4 {[%clk 0:03:00]}  d5 {[%clk 0:02:58]} 2. exd5 {[%clk 0:03:00]}  Nf6 {[%clk 0:02:58]} 3. Nf3 {[%clk 0:02:59]}  Nxd5 {[%clk 0:02:57]} 4. d4 {[%clk 0:02:57]}  g6 {[%clk 0:02:57]} 5. c4 {[%clk 0:02:52]}  Nb6 {[%clk 0:02:55]} 6. Nc3 {[%clk 0:02:52]}  Bg7 {[%clk 0:02:54]} 7. Be3 {[%clk 0:02:49]}  O-O {[%clk 0:02:52]} 8. Be2 {[%clk 0:02:49]}  Bg4 {[%clk 0:02:49]} 9. h3 {[%clk 0:02:37]}  Bxf3 {[%clk 0:02:49]} 10. Bxf3 {[%clk 0:02:38]}  Nc6 {[%clk 0:02:48]} 11. Bxc6 {[%clk 0:02:38]}  bxc6 {[%clk 0:02:47]} 12. Qd3 {[%clk 0:02:32]}  c5 {[%clk 0:02:45]} 13. d5 {[%clk 0:02:31]}  c6 {[%clk 0:02:38]} 14. Bxc5 {[%clk 0:02:19]}  Bxc3+ {[%clk 0:02:35]} 15. bxc3 {[%clk 0:02:17]}  cxd5 {[%clk 0:02:35]} 16. Bxb6 {[%clk 0:02:15]}  axb6 {[%clk 0:02:28]} 17. cxd5 {[%clk 0:02:13]}  Ra3 {[%clk 0:02:23]} 18. O-O {[%clk 0:02:09]}  Qc7 {[%clk 0:02:23]} 19. Rfc1 {[%clk 0:02:01]}  Rc8 {[%clk 0:02:21]} 20. Rab1 {[%clk 0:01:09]}  Rxa2 {[%clk 0:02:14]} 21. Qe3 {[%clk 0:01:09]}  Ra3 {[%clk 0:02:03]} 22. Rxb6 {[%clk 0:00:44]}  Rxc3 {[%clk 0:02:01]} 23. Rxc3 {[%clk 0:00:45]}  Qxc3 {[%clk 0:01:58]} 24. Qh6 {[%clk 0:00:14]}  Qc1+ {[%clk 0:01:56]} 25. Qxc1 {[%clk 0:00:12]}  Rxc1+ {[%clk 0:01:57]} 26. Kh2 {[%clk 0:00:12]}  Rd1 {[%clk 0:01:57]} 27. Rb5 {[%clk 0:00:10]}  Kg7 {[%clk 0:01:54]} 28. f4 {[%clk 0:00:10]}  Kf6 {[%clk 0:01:53]} 29. Kg3 {[%clk 0:00:10]}  Rd3+ {[%clk 0:01:50]} 30. Kf2 {[%clk 0:00:07]}  Ra3 {[%clk 0:01:49]} 31. g3 {[%clk 0:00:04]}  h5 {[%clk 0:01:48]} 32. Kg2 {[%clk 0:00:04]}  Rd3 {[%clk 0:01:38]} 33. g4 {[%clk 0:00:04]}  hxg4 {[%clk 0:01:36]} 34. hxg4 {[%clk 0:00:05]}  e6 {[%clk 0:01:32]} 35. dxe6 {[%clk 0:00:05]}  Kxe6 {[%clk 0:01:32]} 36. Rb6+ {[%clk 0:00:05]}  Ke7 {[%clk 0:01:31]} 37. Kf2 {[%clk 0:00:04]}  Rd6 {[%clk 0:01:29]} 38. Rxd6 {[%clk 0:00:04]}  Kxd6 {[%clk 0:01:29]} 39. Ke3 {[%clk 0:00:03]}  f5 {[%clk 0:01:26]} 40. gxf5 {[%clk 0:00:01]}  gxf5 {[%clk 0:01:27]} 41. Kd4 {[%clk 0:00:01]}  Ke6 {[%clk 0:01:25]} 42. Kc5 {[%clk 0:00:01]}  Ke7 {[%clk 0:01:23]} 43. Kd5 {[%clk 0:00:02]}  Kf6 {[%clk 0:01:23]} 44. Kd6 {[%clk 0:00:03]}  Kf7 {[%clk 0:01:22]} 45. Ke5 {[%clk 0:00:04]}  Kg6 {[%clk 0:01:21]} 46. Ke6 {[%clk 0:00:04]}  Kg7 {[%clk 0:01:21]} 47. Kxf5 {[%clk 0:00:05]}  Kf7 {[%clk 0:01:21]} 48. Kg5 {[%clk 0:00:06]}  Kg7 {[%clk 0:01:20]} 49. f5 {[%clk 0:00:06]}  Kf7 {[%clk 0:01:20]} 50. f6 {[%clk 0:00:07]}  Kf8 {[%clk 0:01:20]} 51. Kf5 {[%clk 0:00:07]}  Kf7 {[%clk 0:01:18]} 52. Ke5 {[%clk 0:00:08]}  Kf8 {[%clk 0:01:17]} 53. Kd6 {[%clk 0:00:08]}  Kf7 {[%clk 0:01:17]} 54. Ke5 {[%clk 0:00:08]}  Kf8 {[%clk 0:01:16]} 55. Kf4 {[%clk 0:00:09]}  Kf7 {[%clk 0:01:16]} 56. Kg5 {[%clk 0:00:09]}  Kf8 {[%clk 0:01:16]} 57. Kf5 {[%clk 0:00:10]}  Kf7 {[%clk 0:01:16]} 58. Ke5 {[%clk 0:00:10]} 1/2-1/2


[Site "https://www.chess.com"]

[Event "Titled Tuesday Blitz April 4 Early 2023"]
[White "Grabinsky, Vladimir"]
[Black "Kujawski, Adam"]
[WhiteFideId "14107074"]
[BlackFideId "1100920"]
[WhiteElo "2027"]
[BlackElo "2054"]
[Result "1-0"]
[Round "06"]
[TimeControl "180+2"]
[Date "2023.04.04"]
[WhiteClock "0:00:15"]
[BlackClock "0:00:01"]

1. e4 {[%clk 0:02:57]}  e5 {[%clk 0:02:00]} 2. Nf3 {[%clk 0:02:55]}  Nc6 {[%clk 0:02:00]} 3. d4 {[%clk 0:02:55]}  exd4 {[%clk 0:02:00]} 4. c3 {[%clk 0:02:56]}  d5 {[%clk 0:01:59]} 5. exd5 {[%clk 0:02:56]}  Qxd5 {[%clk 0:01:59]} 6. cxd4 {[%clk 0:02:57]}  Bg4 {[%clk 0:01:58]} 7. Be2 {[%clk 0:02:57]}  Bb4+ {[%clk 0:01:58]} 8. Nc3 {[%clk 0:02:56]}  Bxf3 {[%clk 0:01:56]} 9. Bxf3 {[%clk 0:02:55]}  Qc4 {[%clk 0:01:56]} 10. Qb3 {[%clk 0:02:46]}  Qxb3 {[%clk 0:01:55]} 11. axb3 {[%clk 0:02:46]}  Nge7 {[%clk 0:01:46]} 12. Be3 {[%clk 0:02:43]}  O-O-O {[%clk 0:01:42]} 13. O-O {[%clk 0:02:36]}  Kb8 {[%clk 0:01:35]} 14. Rfd1 {[%clk 0:02:34]}  Nf5 {[%clk 0:01:29]} 15. Bxc6 {[%clk 0:02:27]}  bxc6 {[%clk 0:01:23]} 16. Ra4 {[%clk 0:02:09]}  a5 {[%clk 0:01:15]} 17. Na2 {[%clk 0:02:07]}  c5 {[%clk 0:01:11]} 18. Nxb4 {[%clk 0:01:53]}  axb4 {[%clk 0:01:06]} 19. Ra5 {[%clk 0:01:54]}  Nxd4 {[%clk 0:00:45]} 20. Bxd4 {[%clk 0:01:34]}  Rxd4 {[%clk 0:00:44]} 21. Rxd4 {[%clk 0:01:31]}  cxd4 {[%clk 0:00:43]} 22. Rb5+ {[%clk 0:01:22]}  Kc8 {[%clk 0:00:38]} 23. Rxb4 {[%clk 0:01:19]}  Rd8 {[%clk 0:00:34]} 24. Kf1 {[%clk 0:01:18]}  Rd5 {[%clk 0:00:34]} 25. Ke2 {[%clk 0:01:16]}  Kd7 {[%clk 0:00:32]} 26. Kd3 {[%clk 0:01:16]}  c5 {[%clk 0:00:32]} 27. Rb7+ {[%clk 0:01:15]}  Ke6 {[%clk 0:00:32]} 28. f4 {[%clk 0:01:11]}  g5 {[%clk 0:00:22]} 29. fxg5 {[%clk 0:00:51]}  Rxg5 {[%clk 0:00:22]} 30. g3 {[%clk 0:00:50]}  h5 {[%clk 0:00:23]} 31. b4 {[%clk 0:00:41]}  cxb4 {[%clk 0:00:15]} 32. Rxb4 {[%clk 0:00:40]}  h4 {[%clk 0:00:15]} 33. gxh4 {[%clk 0:00:39]}  Rg2 {[%clk 0:00:15]} 34. Kxd4 {[%clk 0:00:33]}  Rxh2 {[%clk 0:00:15]} 35. Kc5 {[%clk 0:00:32]}  f5 {[%clk 0:00:15]} 36. Rb8 {[%clk 0:00:23]}  f4 {[%clk 0:00:14]} 37. b4 {[%clk 0:00:20]}  Rxh4 {[%clk 0:00:13]} 38. b5 {[%clk 0:00:20]}  f3 {[%clk 0:00:10]} 39. b6 {[%clk 0:00:17]}  Rf4 {[%clk 0:00:03]} 40. Re8+ {[%clk 0:00:16]}  Kf7 {[%clk 0:00:01]} 41. b7 {[%clk 0:00:15]} 1-0


[Site "https://www.chess.com"]

[Event "Titled Tuesday Blitz April 4 Early 2023"]
[White "I_KID_you_not"]
[Black "Dahlgren, James Allen"]
[BlackFideId "22256873"]
[WhiteElo "2328"]
[BlackElo "2202"]
[Result "1-0"]
[Round "06"]
[TimeControl "180+2"]
[Date "2023.04.04"]
[WhiteClock "0:01:37"]
[BlackClock "0:00:28"]

1. e4 {[%clk 0:03:00]}  e6 {[%clk 0:03:00]} 2. d4 {[%clk 0:03:00]}  c5 {[%clk 0:03:01]} 3. d5 {[%clk 0:02:59]}  exd5 {[%clk 0:03:01]} 4. exd5 {[%clk 0:02:59]}  f5 {[%clk 0:03:01]} 5. c4 {[%clk 0:02:59]}  d6 {[%clk 0:03:02]} 6. Nc3 {[%clk 0:02:59]}  Nf6 {[%clk 0:03:02]} 7. Bd3 {[%clk 0:02:57]}  Be7 {[%clk 0:03:03]} 8. Nge2 {[%clk 0:02:57]}  O-O {[%clk 0:03:04]} 9. O-O {[%clk 0:02:57]}  a6 {[%clk 0:03:04]} 10. Nf4 {[%clk 0:02:56]}  g5 {[%clk 0:03:00]} 11. Ne6 {[%clk 0:02:52]}  Bxe6 {[%clk 0:03:00]} 12. dxe6 {[%clk 0:02:52]}  f4 {[%clk 0:03:00]} 13. Nd5 {[%clk 0:02:48]}  Nc6 {[%clk 0:02:50]} 14. b3 {[%clk 0:02:35]}  Ne5 {[%clk 0:02:22]} 15. Bb2 {[%clk 0:02:34]}  Nxd5 {[%clk 0:01:55]} 16. cxd5 {[%clk 0:02:32]}  Bf6 {[%clk 0:01:44]} 17. Bxe5 {[%clk 0:02:22]}  Bxe5 {[%clk 0:01:45]} 18. Qh5 {[%clk 0:02:19]}  Qe7 {[%clk 0:01:43]} 19. Rae1 {[%clk 0:02:18]}  Qg7 {[%clk 0:01:29]} 20. Re4 {[%clk 0:01:59]}  Rf6 {[%clk 0:01:19]} 21. Rfe1 {[%clk 0:01:53]}  Rh6 {[%clk 0:01:14]} 22. Qd1 {[%clk 0:01:46]}  Re8 {[%clk 0:00:53]} 23. Rxe5 {[%clk 0:01:41]}  dxe5 {[%clk 0:00:53]} 24. d6 {[%clk 0:01:42]}  Rhxe6 {[%clk 0:00:43]} 25. Bc4 {[%clk 0:01:42]}  Qd7 {[%clk 0:00:31]} 26. Rxe5 {[%clk 0:01:36]}  Kg7 {[%clk 0:00:28]} 27. Rxe6 {[%clk 0:01:36]}  Rxe6 {[%clk 0:00:29]} 28. Bxe6 {[%clk 0:01:36]}  Qxe6 {[%clk 0:00:28]} 29. d7 {[%clk 0:01:37]} 1-0


[Site "https://www.chess.com"]

[Event "Titled Tuesday Blitz April 4 Early 2023"]
[White "Polanco Nunez, Yoel Estarling"]
[Black "Ciuffoletti, Paolo"]
[WhiteFideId "6401783"]
[BlackFideId "807630"]
[WhiteElo "2132"]
[BlackElo "2143"]
[Result "1-0"]
[Round "06"]
[TimeControl "180+2"]
[Date "2023.04.04"]
[WhiteClock "0:02:05"]
[BlackClock "0:00:08"]

1. d4 {[%clk 0:02:53]}  d5 {[%clk 0:02:57]} 2. Nf3 {[%clk 0:02:51]}  Nf6 {[%clk 0:02:56]} 3. c3 {[%clk 0:02:49]}  c5 {[%clk 0:02:53]} 4. e3 {[%clk 0:02:49]}  Nc6 {[%clk 0:02:52]} 5. dxc5 {[%clk 0:02:49]}  a5 {[%clk 0:02:41]} 6. Bb5 {[%clk 0:02:44]}  e6 {[%clk 0:02:31]} 7. b4 {[%clk 0:02:43]}  Bd7 {[%clk 0:02:16]} 8. Bb2 {[%clk 0:02:39]}  axb4 {[%clk 0:02:06]} 9. Bxc6 {[%clk 0:02:38]}  Bxc6 {[%clk 0:01:55]} 10. cxb4 {[%clk 0:02:39]}  b6 {[%clk 0:01:55]} 11. a4 {[%clk 0:02:33]}  bxc5 {[%clk 0:01:46]} 12. b5 {[%clk 0:02:25]}  Bd7 {[%clk 0:01:25]} 13. O-O {[%clk 0:02:22]}  Bd6 {[%clk 0:01:23]} 14. Nbd2 {[%clk 0:02:21]}  O-O {[%clk 0:01:19]} 15. Qc2 {[%clk 0:02:22]}  Re8 {[%clk 0:01:08]} 16. e4 {[%clk 0:02:21]}  e5 {[%clk 0:00:46]} 17. exd5 {[%clk 0:02:21]}  Nxd5 {[%clk 0:00:44]} 18. Nc4 {[%clk 0:02:18]}  Qf6 {[%clk 0:00:19]} 19. Qd2 {[%clk 0:02:06]}  e4 {[%clk 0:00:08]} 20. Bxf6 {[%clk 0:02:05]} 1-0


[Site "https://www.chess.com"]